fUST/lending_fUST_20250624
["ID","MTS","AMOUNT","RATE_DAILY","PERIOD"]
[367377782,1750774250641,-151.0,0.0002,2]
[367377783,1750774250651,-460.0,0.0002,2]
[367377784,1750774250661,-3590.14,0.0002,2]
[367377785,1750774250670,-460.0,0.0002,2]
[367377786,1750774250680,-151.0,0.0002,2]
[367377787,1750774250689,-3339.47,0.0002,2]
[367377788,1750774250699,-460.0,0.0002,2]
[367377789,1750774250708,-4221.1,0.0002,2]
[367377790,1750774250717,-489.34,0.0002,2]
[367377791,1750774250727,-1211.74,0.0002,2]
[367377792,1750774250736,-1899.6,0.0002,2]
[367377793,1750774250746,-460.0,0.0002,2]
[367377794,1750774250756,-1527.72,0.0002,2]
[367377795,1750774250765,-460.0,0.0002,2]
[367377796,1750774250774,-460.0,0.0002,2]
[367377797,1750774250784,-535.95,0.0002,2]
[367377798,1750774250794,-3521.84,0.0002,2]
[367377799,1750774250803,-151.0,0.0002,2]
[367377800,1750774250813,-151.0,0.0002,2]
[367377801,1750774250823,-460.0,0.0002,2]
[367377802,1750774250833,-159.480283,0.0002,2]
[367377803,1750774250842,-460.0,0.0002,2]
[367377804,1750774250851,-1564.63,0.0002,2]
[367377805,1750774251072,-186.96,0.0002,2]
[367377806,1750774251081,-460.0,0.0002,2]
[367377807,1750774251090,-929.775711,0.0002,2]
[367377808,1750774251099,-929.775711,0.0002,2]
[367377809,1750774251226,-2676.38,0.0002,2]
[367377810,1750774251236,-1122.37,0.0002,2]
[367377811,1750774251246,-460.0,0.0002,2]
[367377812,1750774251255,-460.0,0.0002,2]
[367377813,1750774251264,-460.0,0.0002,2]
[367377814,1750774251276,-878.98,0.0002,2]
[367377815,1750774251285,-151.0,0.0002,2]
[367377816,1750774251294,-460.0,0.0002,2]
[367377817,1750774251303,-460.0,0.0002,2]
[367377818,1750774251314,-460.0,0.0002,2]
[367377819,1750774251323,-460.0,0.0002,2]
[367377820,1750774251333,-666.8,0.0002,2]
[367377821,1750774251343,-460.0,0.0002,2]
[367377822,1750774251352,-353.24921236,0.0002,2]
[367377823,1750774251361,-460.0,0.0002,2]
[367377824,1750774251370,-460.0,0.0002,2]
[367377825,1750774251379,-667.52,0.0002,2]
[367377826,1750774251388,-582.87361655,0.0002,2]
[367377827,1750774251398,-2412.55,0.0002,2]
[367377828,1750774251407,-151.0,0.0002,2]
[367377829,1750774251416,-460.0,0.0002,2]
[367377830,1750774251426,-460.0,0.0002,2]
[367377831,1750774251435,-534.17077001,0.0002,2]
[367377832,1750774251444,-460.0,0.0002,2]
[367377833,1750774251453,-460.0,0.0002,2]
[367377834,1750774251462,-460.0,0.0002,2]
[367377835,1750774251472,-460.0,0.0002,2]
[367377836,1750774251481,-460.0,0.0002,2]
[367377837,1750774251490,-460.0,0.0002,2]
[367377838,1750774251500,-460.0,0.0002,2]
[367377839,1750774251509,-757.14,0.0002,2]
[367377840,1750774251518,-460.0,0.0002,2]
[367377841,1750774251527,-460.0,0.0002,2]
[367377842,1750774251536,-460.0,0.0002,2]
[367377843,1750774251546,-151.0,0.0002,2]
[367377844,1750774251555,-460.0,0.0002,2]
[367377845,1750774251564,-151.0,0.0002,2]
[367377846,1750774251573,-3142.01,0.0002,2]
[367377847,1750774251582,-460.0,0.0002,2]
[367377848,1750774251591,-460.0,0.0002,2]
[367377849,1750774251601,-3233.74,0.0002,2]
[367377850,1750774251610,-151.0,0.0002,2]
[367377851,1750774251619,-460.0,0.0002,2]
[367377852,1750774251628,-460.0,0.0002,2]
[367377853,1750774251638,-460.0,0.0002,2]
[367377854,1750774251652,-589.92,0.0002,2]
[367377855,1750774251661,-460.0,0.0002,2]
[367377856,1750774251671,-151.0,0.0002,2]
[367377857,1750774251680,-460.0,0.0002,2]
[367377858,1750774251689,-8254.34665156,0.0002,2]
[367377859,1750774251700,-4582.47,0.0002,2]
[367377860,1750774251709,-460.0,0.0002,2]
[367377861,1750774251719,-490.48,0.0002,2]
[367377862,1750774251728,-151.0,0.0002,2]
[367377863,1750774251737,-151.0,0.0002,2]
[367377864,1750774251746,-460.0,0.0002,2]
[367377865,1750774251755,-1637.3,0.0002,2]
[367377866,1750774251765,-151.0,0.0002,2]
[367377867,1750774251774,-460.0,0.0002,2]
[367377868,1750774251783,-460.0,0.0002,2]
[367377869,1750774251792,-4475.1,0.0002,2]
[367377870,1750774251801,-460.0,0.0002,2]
[367377871,1750774251811,-460.0,0.0002,2]
[367377872,1750774251819,-460.0,0.0002,2]
[367377873,1750774251828,-460.0,0.0002,2]
[367377874,1750774251837,-459.73362869,0.0002,2]
[367377875,1750774251847,-460.0,0.0002,2]
[367377876,1750774251855,-151.0,0.0002,2]
[367377877,1750774251864,-460.0,0.0002,2]
[367377878,1750774251873,-568.1,0.0002,2]
[367377879,1750774251882,-460.0,0.0002,2]
[367377880,1750774251892,-953.99,0.0002,2]
[367377881,1750774251902,-1066.59,0.0002,2]
[367377882,1750774251911,-1268.76,0.0002,2]
[367377883,1750774251920,-460.0,0.0002,2]
[367377884,1750774251929,-460.0,0.0002,2]
[367377885,1750774251938,-460.0,0.0002,2]
[367377886,1750774251947,-536.46,0.0002,2]
[367377887,1750774251957,-993.32,0.0002,2]
[367377888,1750774251966,-1291.29,0.0002,2]
[367377889,1750774251977,-460.0,0.0002,2]
[367377890,1750774251986,-816.09,0.0002,2]
[367377891,1750774251996,-4000.0,0.0002,4]
[367377892,1750774252005,-2309.93,0.0002,2]
[367377893,1750774252015,-460.0,0.0002,2]
[367377894,1750774252024,-460.0,0.0002,2]
[367377895,1750774252033,-460.0,0.0002,2]
[367377896,1750774252043,-2618.18,0.0002,2]
[367377897,1750774252052,-460.0,0.0002,2]
[367377898,1750774252062,-8696.44,0.0002,2]
[367377899,1750774252071,-2083.09,0.0002,2]
[367377900,1750774252080,-500.0,0.0002002,2]
[367377901,1750774252089,-500.0,0.0002002,2]
[367377902,1750774252098,-500.0,0.0002002,2]
[367377903,1750774252107,-584.0,0.00020027,2]
[367377904,1750774252116,-502.72491854,0.00020037,2]
[367377905,1750774252125,-500.51598291,0.00020037,2]
[367377906,1750774252134,-500.0,0.00020037,2]
[367377907,1750774252145,-500.0,0.00020037,2]
[367377908,1750774252154,-500.0,0.00020037,2]
[367377909,1750774252163,-500.0,0.00020037,2]
[367377910,1750774252172,-500.0,0.00020037,2]
[367377911,1750774252181,-500.0,0.00020037,2]
[367377912,1750774252190,-225.11317254,0.00020037,2]
[367377913,1750774252199,-500.0,0.00020037,2]
[367377914,1750774252209,-500.0,0.00020037,2]
[367377915,1750774252217,-500.0,0.00020037,2]
[367377916,1750774252226,-500.0,0.00020037,2]
[367377917,1750774252235,-167.65742177,0.00020037,2]
[367377918,1750774252244,-8254.34665143,0.00020038,2]
[367377919,1750774252254,-151.0,0.00020038,2]
[367377920,1750774252263,-170.261834,0.00020038,2]
[367377921,1750774252276,-170.261834,0.00020038,2]
[367377922,1750774252285,-151.0,0.00020038,2]
[367377923,1750774252294,-475.91412624,0.00020042,2]
[367377924,1750774252303,-501.78579419,0.00020042,2]
[367377925,1750774252313,-500.0,0.00020042,2]
[367377926,1750774252322,-500.0,0.00020042,2]
[367377927,1750774252331,-500.0,0.00020042,2]
[367377928,1750774252339,-504.51568774,0.00020042,2]
[367377929,1750774252350,-584.0,0.00020055,2]
[367377930,1750774252360,-46418.16953637,0.00020068,2]
[367377931,1750774252368,-805754.63087,0.00020068,2]
[367377932,1750774252380,-9296.39556105,0.00020069,2]
[367377933,1750774252396,-584.0,0.00020082,2]
[367377934,1750774252413,-584.0,0.00020109,2]
[367377935,1750774252426,-160.0,0.00020123,3]
[367377936,1750774252439,-584.0,0.00020137,2]
[367377937,1750774252452,-770.0,0.00020147,2]
[367377938,1750774252467,-584.0,0.00020164,2]
[367377939,1750774252481,-8254.34665143,0.00020176,2]
[367377940,1750774252497,-310.176559,0.00020187,2]
[367377941,1750774252512,-584.0,0.00020192,2]
[367377942,1750774252525,-42324.24726352,0.000202,2]
[367377943,1750774252538,-770.0,0.000202,2]
[367377944,1750774252551,-151.0,0.00020201,2]
[367377945,1750774252564,-151.0,0.00020201,2]
[367377946,1750774252577,-151.0,0.00020201,2]
[367377947,1750774252590,-151.0,0.00020201,2]
[367377948,1750774252601,-151.0,0.00020201,2]
[367377949,1750774252614,-151.0,0.00020201,2]
[367377950,1750774252626,-151.0,0.00020201,2]
[367377951,1750774252640,-871.110603,0.00020201,2]
[367377952,1750774252654,-871.110603,0.00020201,2]
[367377953,1750774252668,-151.0,0.00020201,2]
[367377954,1750774252682,-151.0,0.00020201,2]
[367377955,1750774252696,-151.0,0.00020201,2]
[367377956,1750774252708,-151.0,0.00020201,2]
[367377957,1750774252718,-151.0,0.00020201,2]
[367377958,1750774252730,-151.0,0.00020201,2]
[367377959,1750774252746,-152.115508,0.00020201,2]
[367377960,1750774252759,-584.0,0.00020219,2]
[367377961,1750774252772,-584.0,0.00020246,2]
[367377962,1750774252784,-1000.0,0.00020267,2]
[367377963,1750774252798,-1000.0,0.00020267,2]
[367377964,1750774252810,-1000.0,0.00020267,2]
[367377965,1750774252821,-1000.0,0.00020267,2]
[367377966,1750774252833,-1000.0,0.00020267,2]
[367377967,1750774252845,-785.553212,0.00020269,2]
[367377968,1750774252857,-460.0,0.00020273,2]
[367377969,1750774252868,-354.26,0.00020273,2]
[367377970,1750774252880,-460.0,0.00020273,2]
[367377971,1750774252893,-460.0,0.00020273,2]
[367377972,1750774252905,-460.0,0.00020273,2]
[367377973,1750774252918,-592.49,0.00020273,2]
[367377974,1750774252930,-460.0,0.00020273,2]
[367377975,1750774252942,-460.0,0.00020273,2]
[367377976,1750774252953,-460.0,0.00020273,2]
[367377977,1750774252966,-460.0,0.00020273,2]
[367377978,1750774252977,-693.02,0.00020273,2]
[367377979,1750774252989,-560.72,0.00020273,2]
[367377980,1750774253001,-460.0,0.00020273,2]
[367377981,1750774253013,-460.0,0.00020273,2]
[367377982,1750774253025,-1183.79,0.00020273,2]
[367377983,1750774253037,-460.0,0.00020273,2]
[367377984,1750774253049,-478.68,0.00020273,2]
[367377985,1750774253060,-460.0,0.00020273,2]
[367377986,1750774253075,-583.69,0.00020273,2]
[367377987,1750774253087,-460.0,0.00020273,2]
[367377988,1750774253099,-460.0,0.00020273,2]
[367377989,1750774253111,-460.0,0.00020273,2]
[367377990,1750774253122,-392.73947069,0.00020273,2]
[367377991,1750774253133,-460.0,0.00020273,2]
[367377992,1750774253145,-460.0,0.00020273,2]
[367377993,1750774253157,-557.54,0.00020273,2]
[367377994,1750774253169,-487.87,0.00020273,2]
[367377995,1750774253180,-1122.0,0.00020273,2]
[367377996,1750774253192,-225.31745559,0.00020273,2]
[367377997,1750774253203,-460.0,0.00020273,2]
[367377998,1750774253214,-460.0,0.00020273,2]
[367377999,1750774253226,-460.0,0.00020273,2]
[367378000,1750774253238,-460.0,0.00020273,2]
[367378001,1750774253251,-1004.95,0.00020273,2]
[367378002,1750774253262,-322.0,0.00020273,2]
[367378003,1750774253278,-460.0,0.00020273,2]
[367378004,1750774253289,-460.0,0.00020273,2]
[367378005,1750774253300,-1237.79,0.00020273,2]
[367378006,1750774253314,-460.0,0.00020273,2]
[367378007,1750774253327,-1443.65,0.00020273,2]
[367378008,1750774253339,-3645.75,0.00020273,2]
[367378009,1750774253351,-1240.3,0.00020273,2]
[367378010,1750774253364,-460.0,0.00020273,2]
[367378011,1750774253377,-152.931668,0.00020273,2]
[367378012,1750774253389,-460.0,0.00020273,2]
[367378013,1750774253401,-609.1644967,0.00020273,2]
[367378014,1750774253413,-203.68,0.00020273,2]
[367378015,1750774253425,-1257.73,0.00020273,2]
[367378016,1750774253437,-758.12,0.00020273,2]
[367378017,1750774253448,-895.82,0.00020273,2]
[367378018,1750774253460,-460.0,0.00020273,2]
[367378019,1750774253472,-460.0,0.00020273,2]
[367378020,1750774253484,-151.0,0.00020273,2]
[367378021,1750774253496,-460.0,0.00020273,2]
[367378022,1750774253508,-151.0,0.00020273,2]
[367378023,1750774253520,-676.87,0.00020273,2]
[367378024,1750774253532,-460.0,0.00020273,2]
[367378025,1750774253545,-1204.57,0.00020273,2]
[367378026,1750774253566,-460.0,0.00020273,2]
[367378027,1750774253578,-460.0,0.00020273,2]
[367378028,1750774253590,-460.0,0.00020273,2]
[367378029,1750774253601,-151.0,0.00020273,2]
[367378030,1750774253613,-971.84,0.00020273,2]
[367378031,1750774253624,-1520.1,0.00020273,2]
[367378032,1750774253635,-460.0,0.00020273,2]
[367378033,1750774253649,-460.0,0.00020273,2]
[367378034,1750774253661,-151.0,0.00020273,2]
[367378035,1750774253673,-415.66000001,0.00020273,2]
[367378036,1750774253686,-3590.14,0.00020273,2]
[367378037,1750774253697,-460.0,0.00020273,2]
[367378038,1750774253710,-151.0,0.00020273,2]
[367378039,1750774253721,-3339.47,0.00020273,2]
[367378040,1750774253733,-460.0,0.00020273,2]
[367378041,1750774253744,-4221.1,0.00020273,2]
[367378042,1750774253756,-489.34,0.00020273,2]
[367378043,1750774253768,-1211.74,0.00020273,2]
[367378044,1750774253779,-1899.6,0.00020273,2]
[367378045,1750774253792,-460.0,0.00020273,2]
[367378046,1750774253804,-1527.72,0.00020273,2]
[367378047,1750774253813,-460.0,0.00020273,2]
[367378048,1750774253823,-460.0,0.00020273,2]
[367378049,1750774253832,-3521.84,0.00020273,2]
[367378050,1750774253841,-151.0,0.00020273,2]
[367378051,1750774254041,-151.0,0.00020273,2]
[367378052,1750774254055,-460.0,0.00020273,2]
[367378053,1750774254064,-460.0,0.00020273,2]
[367378054,1750774254073,-1564.63,0.00020273,2]
[367378055,1750774254083,-487.84857995,0.00020273,2]
[367378056,1750774254092,-929.775711,0.00020273,2]
[367378057,1750774254102,-929.775711,0.00020273,2]
[367378058,1750774254111,-2676.38,0.00020273,2]
[367378059,1750774254120,-1122.37,0.00020273,2]
[367378060,1750774254129,-460.0,0.00020273,2]
[367378061,1750774254139,-508.85404565,0.00020273,2]
[367378062,1750774254149,-878.98,0.00020273,2]
[367378063,1750774254158,-151.0,0.00020273,2]
[367378064,1750774254168,-460.0,0.00020273,2]
[367378065,1750774254177,-460.0,0.00020273,2]
[367378066,1750774254187,-460.0,0.00020273,2]
[367378067,1750774254196,-460.0,0.00020273,2]
[367378068,1750774254205,-460.0,0.00020273,2]
[367378069,1750774254214,-460.0,0.00020273,2]
[367378070,1750774254223,-666.8,0.00020273,2]
[367378071,1750774254232,-460.0,0.00020273,2]
[367378072,1750774254241,-667.52,0.00020273,2]
[367378073,1750774254250,-2412.55,0.00020273,2]
[367378074,1750774254260,-460.0,0.00020273,2]
[367378075,1750774254270,-460.0,0.00020273,2]
[367378076,1750774254280,-460.0,0.00020273,2]
[367378077,1750774254289,-460.0,0.00020273,2]
[367378078,1750774254300,-460.0,0.00020273,2]
[367378079,1750774254311,-460.0,0.00020273,2]
[367378080,1750774254321,-460.0,0.00020273,2]
[367378081,1750774254330,-450.37840309,0.00020273,2]
[367378082,1750774254342,-460.0,0.00020273,2]
[367378083,1750774254351,-757.14,0.00020273,2]
[367378084,1750774254361,-460.0,0.00020273,2]
[367378085,1750774254370,-460.0,0.00020273,2]
[367378086,1750774254379,-460.0,0.00020273,2]
[367378087,1750774254389,-151.0,0.00020273,2]
[367378088,1750774254398,-460.0,0.00020273,2]
[367378089,1750774254408,-151.0,0.00020273,2]
[367378090,1750774254419,-3142.01,0.00020273,2]
[367378091,1750774254429,-460.0,0.00020273,2]
[367378092,1750774254438,-509.72,0.00020273,2]
[367378093,1750774254448,-3233.74,0.00020273,2]
[367378094,1750774254457,-460.0,0.00020273,2]
[367378095,1750774254468,-460.0,0.00020273,2]
[367378096,1750774254477,-460.0,0.00020273,2]
[367378097,1750774254486,-589.92,0.00020273,2]
[367378098,1750774254496,-540.0,0.00020273,2]
[367378099,1750774254506,-460.0,0.00020273,2]
[367378100,1750774254515,-460.0,0.00020273,2]
[367378101,1750774254524,-490.48,0.00020273,2]
[367378102,1750774254533,-460.0,0.00020273,2]
[367378103,1750774254543,-1637.3,0.00020273,2]
[367378104,1750774254552,-4582.47,0.00020273,2]
[367378105,1750774254561,-460.0,0.00020273,2]
[367378106,1750774254571,-460.0,0.00020273,2]
[367378107,1750774254580,-4475.1,0.00020273,2]
[367378108,1750774254589,-503.87782392,0.00020273,2]
[367378109,1750774254599,-460.0,0.00020273,2]
[367378110,1750774254607,-460.0,0.00020273,2]
[367378111,1750774254616,-460.0,0.00020273,2]
[367378112,1750774254626,-460.0,0.00020273,2]
[367378113,1750774254635,-460.0,0.00020273,2]
[367378114,1750774254645,-568.1,0.00020273,2]
[367378115,1750774254654,-460.0,0.00020273,2]
[367378116,1750774254663,-953.99,0.00020273,2]
[367378117,1750774254673,-1066.59,0.00020273,2]
[367378118,1750774254682,-1268.76,0.00020273,2]
[367378119,1750774254691,-513.71,0.00020273,2]
[367378120,1750774254700,-460.0,0.00020273,2]
[367378121,1750774254709,-460.0,0.00020273,2]
[367378122,1750774254718,-993.32,0.00020273,2]
[367378123,1750774254727,-1291.29,0.00020273,2]
[367378124,1750774254737,-460.0,0.00020273,2]
[367378125,1750774254746,-816.09,0.00020273,2]
[367378126,1750774254755,-2309.93,0.00020273,2]
[367378127,1750774254765,-460.0,0.00020273,2]
[367378128,1750774254774,-460.0,0.00020273,2]
[367378129,1750774254783,-460.0,0.00020273,2]
[367378130,1750774254792,-2618.18,0.00020273,2]
[367378131,1750774254802,-460.0,0.00020273,2]
[367378132,1750774254813,-8696.44,0.00020273,2]
[367378133,1750774254823,-2083.09,0.00020273,2]
[367378134,1750774254833,-584.0,0.00020274,2]
[367378135,1750774254846,-1000.0,0.00020293,2]
[367378136,1750774254856,-46426.28771739,0.00020295,2]
[367378137,1750774254865,-151.0,0.00020295,2]
[367378138,1750774254875,-151.0,0.00020295,2]
[367378139,1750774254884,-251.941362,0.00020295,2]
[367378140,1750774254894,-151.0,0.00020295,2]
[367378141,1750774254903,-151.0,0.00020295,2]
[367378142,1750774254912,-219.254056,0.00020295,2]
[367378143,1750774254922,-151.0,0.00020295,2]
[367378144,1750774254931,-170.261834,0.00020295,2]
[367378145,1750774254941,-170.261834,0.00020295,2]
[367378146,1750774254950,-151.0,0.00020295,2]
[367378147,1750774254959,-6135.69758423,0.00020299,2]
[367378148,1750774254969,-460.0,0.000203,2]
[367378149,1750774254979,-475.71,0.000203,2]
[367378150,1750774254989,-588.57682784,0.00020301,2]
[367378151,1750774254999,-168.482322,0.0002031,2]
[367378152,1750774255009,-168.482322,0.0002031,2]
[367378153,1750774255018,-250.0,0.0002031,2]
[367378154,1750774255027,-8254.34665143,0.00020314,3]
[367378155,1750774255037,-1000.0,0.0002032,2]
[367378156,1750774255047,-1000.0,0.0002032,2]
[367378157,1750774255057,-25600.08145859,0.00020342,2]
[367378158,1750774255067,-151.0,0.00020342,2]
[367378159,1750774255077,-151.0,0.00020342,2]
[367378160,1750774255087,-151.0,0.00020342,2]
[367378161,1750774255098,-151.0,0.00020342,2]
[367378162,1750774255107,-151.0,0.00020342,2]
[367378163,1750774255116,-151.0,0.00020342,2]
[367378164,1750774255126,-274.17274144,0.00020392,2]
[367378165,1750774255135,-554.97647579,0.00020392,2]
[367378166,1750774255145,-151.0,0.000204,4]
[367378167,1750774255155,-150.0,0.00020403,2]
[367378168,1750774255164,-150.0,0.00020403,2]
[367378169,1750774255174,-150.0,0.00020403,2]
[367378170,1750774255183,-150.0,0.00020403,2]
[367378171,1750774255193,-965.0,0.00020403,2]
[367378172,1750774255202,-654.0,0.00020403,2]
[367378173,1750774255212,-2160.0,0.00020403,2]
[367378174,1750774255220,-500.0,0.00020406,2]
[367378175,1750774255230,-8254.34665143,0.00020452,3]
[367378176,1750774255239,-151.0,0.00020452,2]
[367378177,1750774255249,-151.0,0.00020452,2]
[367378178,1750774255258,-151.0,0.00020452,2]
[367378179,1750774255270,-500.0,0.00020467,2]
[367378180,1750774255279,-500.0,0.00020467,2]
[367378181,1750774255289,-1000.0,0.00020467,2]
[367378182,1750774255298,-9257.53717718,0.000205,2]
[367378183,1750774255307,-11736.23487999,0.000205,2]
[367378184,1750774255317,-700.0,0.000205,3]
[367378185,1750774255327,-151.0,0.000205,2]
[367378186,1750774255336,-151.0,0.000205,2]
[367378187,1750774255346,-189.34446,0.000205,2]
[367378188,1750774255356,-151.0,0.000205,2]
[367378189,1750774255365,-151.0,0.000205,2]
[367378190,1750774255374,-272.83262,0.000205,2]
[367378191,1750774255383,-871.110603,0.000205,2]
[367378192,1750774255394,-871.110603,0.000205,2]
[367378193,1750774255403,-715.6,0.00020517,3]
[367378194,1750774255412,-846.68469334,0.0002052,3]
[367378195,1750774255422,-160.0,0.0002052,3]
[367378196,1750774255432,-846.68469334,0.0002052,3]
[367378197,1750774255441,-160.0,0.0002052,3]
[367378198,1750774255450,-213.66798275,0.0002052,3]
[367378199,1750774255461,-12556.00642039,0.0002052,3]
[367378200,1750774255470,-2809.0,0.00020528,3]
[367378201,1750774255480,-2809.0,0.00020528,3]
[367378202,1750774255489,-2809.0,0.00020528,3]
[367378203,1750774255499,-2809.0,0.00020528,3]
[367378204,1750774255509,-2813.0,0.00020528,3]
[367378205,1750774255518,-2809.0,0.00020528,3]
[367378206,1750774255528,-151.0,0.00020528,2]
[367378207,1750774255538,-151.0,0.00020528,2]
[367378208,1750774255547,-163.819478,0.00020528,2]
[367378209,1750774255556,-151.0,0.00020528,2]
[367378210,1750774255567,-151.0,0.00020528,2]
[367378211,1750774255576,-151.0,0.00020528,2]
[367378212,1750774255585,-151.0,0.00020528,2]
[367378213,1750774255594,-151.0,0.00020528,2]
[367378214,1750774255603,-215.0738,0.00020532,2]
[367378215,1750774255613,-160.0,0.00020538,3]
[367378216,1750774255623,-725.63,0.00020547,14]
[367378217,1750774255633,-156.592492,0.00020547,2]
[367378218,1750774255645,-151.0,0.00020547,2]
[367378219,1750774255655,-151.0,0.00020547,2]
[367378220,1750774255664,-460.0,0.00020547,2]
[367378221,1750774255674,-460.0,0.00020547,2]
[367378222,1750774255683,-592.49,0.00020547,2]
[367378223,1750774255693,-460.0,0.00020547,2]
[367378224,1750774255702,-460.0,0.00020547,2]
[367378225,1750774255711,-460.0,0.00020547,2]
[367378226,1750774255721,-460.0,0.00020547,2]
[367378227,1750774255731,-693.02,0.00020547,2]
[367378228,1750774255740,-560.72,0.00020547,2]
[367378229,1750774255749,-362.26,0.00020547,2]
[367378230,1750774255759,-460.0,0.00020547,2]
[367378231,1750774255768,-1183.79,0.00020547,2]
[367378232,1750774255778,-460.0,0.00020547,2]
[367378233,1750774255787,-478.68,0.00020547,2]
[367378234,1750774255797,-460.0,0.00020547,2]
[367378235,1750774255808,-583.69,0.00020547,2]
[367378236,1750774255819,-460.0,0.00020547,2]
[367378237,1750774255828,-460.0,0.00020547,2]
[367378238,1750774255838,-460.0,0.00020547,2]
[367378239,1750774255847,-460.0,0.00020547,2]
[367378240,1750774255856,-460.0,0.00020547,2]
[367378241,1750774255866,-1122.0,0.00020547,2]
[367378242,1750774255875,-471.21,0.00020547,2]
[367378243,1750774255884,-508.6,0.00020547,2]
[367378244,1750774255897,-399.37984601,0.00020547,2]
[367378245,1750774255906,-460.0,0.00020547,2]
[367378246,1750774255915,-1004.95,0.00020547,2]
[367378247,1750774255925,-460.0,0.00020547,2]
[367378248,1750774255934,-460.0,0.00020547,2]
[367378249,1750774255944,-1237.79,0.00020547,2]
[367378250,1750774255953,-460.0,0.00020547,2]
[367378251,1750774255962,-1443.65,0.00020547,2]
[367378252,1750774255972,-3645.75,0.00020547,2]
[367378253,1750774255981,-1240.3,0.00020547,2]
[367378254,1750774255990,-460.0,0.00020547,2]
[367378255,1750774256000,-1257.73,0.00020547,2]
[367378256,1750774256010,-758.12,0.00020547,2]
[367378257,1750774256019,-895.82,0.00020547,2]
[367378258,1750774256028,-460.0,0.00020547,2]
[367378259,1750774256038,-460.0,0.00020547,2]
[367378260,1750774256047,-460.0,0.00020547,2]
[367378261,1750774256057,-151.0,0.00020547,2]
[367378262,1750774256066,-676.87,0.00020547,2]
[367378263,1750774256076,-460.0,0.00020547,2]
[367378264,1750774256085,-1204.57,0.00020547,2]
[367378265,1750774256095,-460.0,0.00020547,2]
[367378266,1750774256104,-202.4,0.00020547,2]
[367378267,1750774256227,-154.232959,0.00020547,2]
[367378268,1750774256236,-971.84,0.00020547,2]
[367378269,1750774256246,-1520.1,0.00020547,2]
[367378270,1750774256255,-151.0,0.00020547,2]
[367378271,1750774256265,-460.0,0.00020547,2]
[367378272,1750774256279,-460.0,0.00020547,2]
[367378273,1750774256288,-3590.14,0.00020547,2]
[367378274,1750774256299,-460.0,0.00020547,2]
[367378275,1750774256308,-151.0,0.00020547,2]
[367378276,1750774256320,-3339.47,0.00020547,2]
[367378277,1750774256329,-460.0,0.00020547,2]
[367378278,1750774256339,-4221.1,0.00020547,2]
[367378279,1750774256354,-489.34,0.00020547,2]
[367378280,1750774256363,-1211.74,0.00020547,2]
[367378281,1750774256373,-1899.6,0.00020547,2]